bitfinex-derivatives/quotes_ETHF0:USTF0_20250909
["timestamp","ask_amount","ask_price","bid_price","bid_amount"]
[1757440961781,8.9178,4286.3,4286.2,0.7875]
[1757440963384,8.9178,4286.3,4286.2,0.5525]
[1757440963585,12.9178,4286.3,4285.1,1.67475425]
[1757440963889,12.9178,4286.3,4285.0,270.10580131]
[1757440963890,3.2078,4285.7,4285.3,0.5525]
[1757440964083,8.1878,4285.7,4285.3,0.5525]
[1757440964487,8.1878,4285.7,4285.0,266.89800131]
[1757440964689,3.2078,4285.2,4285.1,0.7875]
[1757440964986,8.8078,4285.2,4285.1,0.7875]
[1757440965989,8.8078,4285.2,4285.1,1.1668]
[1757440966490,8.8078,4285.2,4285.1,1.5376]
[1757440967789,8.8078,4285.2,4285.1,1.1668]
[1757440968189,8.8078,4285.2,4285.1,0.7875]
[1757440968689,8.8078,4285.2,4285.0,267.45290131]
[1757440968880,8.8078,4285.2,4285.1,0.7899]
[1757440969391,8.8078,4285.2,4285.1,1.5834]
[1757440972388,8.8078,4285.2,4285.1,1.1901]
[1757440973791,8.8078,4285.2,4285.1,0.7899]
[1757440974290,8.8078,4285.2,4285.1,1.1901]
[1757440975589,8.8078,4285.2,4285.1,0.7899]
[1757440977095,8.8078,4285.2,4285.1,1.1901]
[1757440978598,8.8078,4285.2,4285.1,0.7899]
[1757440981101,8.8078,4285.2,4285.1,1.1901]
[1757440982301,8.8078,4285.2,4285.1,0.7899]
[1757440983802,8.8078,4285.2,4285.0,266.65440131]
[1757440984004,8.8078,4285.2,4285.1,0.235]
[1757440984205,9.0428,4285.2,4285.0,266.65440131]
[1757440984904,8.8078,4285.2,4285.1,0.5549]
[1757440985104,8.8078,4285.2,4285.1,1.5834]
[1757440993317,5.6,4285.2,4285.1,1.5834]
[1757441000041,5.6,4285.2,4285.1,5.5834]
[1757441000519,1.25086066,4287.3,4285.1,5.5834]
[1757441000520,3.7066,4286.4,4286.0,0.2323]
[1757441000719,4.6327,4286.4,4286.3,0.9162]
[1757441000921,9.4127,4286.4,4286.3,1.1512]
[1757441002722,9.4127,4286.4,4286.3,0.7934]
[1757441004430,9.4127,4286.4,4286.3,1.1512]
[1757441004635,5.3517,4286.4,4286.3,1.5323]
[1757441005330,4.99,4286.4,4286.3,1.5323]
[1757441005526,4.99,4286.4,4286.3,5.5323]
[1757441005728,3.9239,4287.5,4287.4,0.3578]
[1757441006035,9.3439,4287.5,4287.4,1.1512]
[1757441006332,6.6349,4287.5,4287.4,1.1512]
[1757441006926,6.1361,4287.5,4287.4,1.5323]
[1757441007130,5.7817,4287.5,4287.4,1.5323]
[1757441007331,5.42,4287.5,4287.4,5.5323]
[1757441008635,6.6349,4287.5,4287.4,0.7934]
[1757441009528,6.1361,4287.5,4287.2,0.5584]
[1757441009730,1.2149,4287.4,4287.3,0.235]
[1757441009931,6.6049,4287.4,4287.3,0.235]
[1757441010331,6.6049,4287.4,4287.3,0.7934]
[1757441010729,6.6049,4287.4,4287.3,0.235]
[1757441011539,6.6049,4287.4,4287.3,0.7934]
[1757441012232,6.6049,4287.4,4287.3,0.235]
[1757441012836,6.6049,4287.4,4287.3,1.1512]
[1757441013036,6.1061,4287.4,4287.3,1.5323]
[1757441016243,6.6049,4287.4,4287.3,0.7934]
[1757441017842,6.6049,4287.4,4287.3,1.1512]
[1757441018746,6.6049,4287.4,4287.3,0.7934]
[1757441019045,6.6049,4287.4,4287.3,0.235]
[1757441019631,0.7161,4287.2,4287.1,3.2078]
[1757441019837,6.6049,4287.2,4287.1,3.4428]
[1757441020542,6.6049,4287.2,4287.1,4.0012]
[1757441020845,6.6049,4287.2,4286.7,0.5584]
[1757441021049,6.6049,4287.2,4286.6,3.2078]
[1757441021238,1.2149,4286.7,4286.6,3.2078]
[1757441021546,5.9949,4286.7,4286.6,3.4428]
[1757441022937,5.9949,4286.7,4286.6,4.0012]
[1757441023539,5.9949,4286.7,4286.6,4.359]
[1757441024140,5.9949,4286.7,4286.6,4.0012]
[1757441026548,5.9949,4286.7,4286.6,3.4428]
[1757441028451,5.9949,4286.7,4286.6,4.0265]
[1757441031650,5.9949,4286.7,4286.6,0.235]
[1757441032351,5.9949,4286.7,4286.6,1.2045]
[1757441032653,5.9949,4286.7,4286.6,1.6028]
[1757441034154,5.4961,4286.7,4286.6,1.6028]
[1757441034756,4.78,4286.7,4286.6,1.6028]
[1757441035457,4.78,4286.7,4286.6,4.8106]
[1757441036361,5.1876,4286.7,4286.6,4.8106]
[1757441037150,6.1707,4286.7,4286.6,0.235]
[1757441037459,5.574,4286.7,4286.6,1.6028]
[1757441040662,5.1876,4286.7,4286.6,1.6028]
[1757441040863,4.78,4286.7,4286.6,1.6028]
[1757441041563,5.1876,4286.7,4286.6,1.6028]
[1757441042562,6.1707,4286.7,4286.6,1.2045]
[1757441042860,1.3907,4286.5,4286.4,3.7915]
[1757441043060,6.5107,4286.5,4286.4,4.0265]
[1757441043264,6.5107,4286.5,4286.4,4.4123]
[1757441044265,6.5107,4286.5,4286.4,6.09081866]
[1757441045467,5.914,4286.5,4286.4,6.48911866]
[1757441048464,5.914,4286.5,4286.4,4.8106]
[1757441051370,5.914,4286.5,4286.4,4.8106]
[1757441054675,6.5107,4286.5,4286.4,4.8106]
[1757441056276,5.914,4286.5,4286.4,4.8106]
[1757441056874,5.5276,4286.5,4286.4,4.8106]
[1757441057070,4.5928,4287.6,4287.5,1.3788]
[1757441057277,8.8078,4287.6,4287.5,1.8492]
[1757441057470,5.6,4287.6,4287.5,1.8492]
[1757441057674,0.05,4287.6,4287.5,5.057]
[1757441057876,1.385,4288.4,4288.3,0.3957]
[1757441058073,6.29,4288.4,4288.3,1.6138]
[1757441058273,5.8974,4288.4,4288.3,1.6138]
[1757441058481,5.48,4288.4,4288.3,5.97613909]
[1757441059786,2.94,4288.4,4288.3,5.97613909]
[1757441061679,3.75,4288.4,4288.3,1.55336882]
[1757441061885,3.75,4288.4,4288.3,1.78836882]
[1757441062485,4.325,4288.4,4288.3,0.75456882]
[1757441062681,4.325,4288.4,4288.3,0.98956882]
[1757441063090,4.325,4288.4,4288.3,1.38526882]
[1757441063390,3.75,4288.4,4288.3,1.78836882]
[1757441066284,4.325,4288.4,4288.3,1.78836882]
[1757441066786,3.75,4288.4,4288.3,1.78836882]
[1757441067388,2.94,4288.4,4288.3,1.78836882]
[1757441067792,3.3574,4288.4,4288.3,1.78836882]
[1757441068185,3.75,4288.4,4288.3,1.78836882]
[1757441068490,3.3574,4288.4,4288.3,1.78836882]
[1757441068692,2.94,4288.4,4288.3,1.78836882]
[1757441075497,4.325,4288.4,4288.3,0.75456882]
[1757441075697,4.325,4288.4,4288.3,0.98956882]
[1757441075897,3.75,4288.4,4288.3,1.78836882]
[1757441076499,4.325,4288.4,4288.3,1.78836882]
[1757441076702,4.325,4288.4,4288.3,1.38526882]
[1757441077003,4.325,4288.4,4288.3,0.98956882]
[1757441077400,4.325,4288.4,4288.3,0.17456882]
[1757441077602,4.325,4288.4,4288.3,0.40956882]
[1757441077994,2.94,4288.4,4288.3,1.78836882]
[1757441078196,3.3574,4288.4,4288.3,1.78836882]
[1757441080506,2.94,4288.4,4288.3,1.78836882]
[1757441083206,4.325,4288.4,4288.3,1.78836882]
[1757441084398,4.325,4288.4,4288.3,3.45965835]
[1757441084602,4.325,4288.4,4288.3,6.66745835]
[1757441085303,3.75,4288.4,4288.3,4.99616882]
[1757441085803,4.3043,4288.4,4288.3,4.99616882]
[1757441086111,4.3043,4288.4,4288.3,6.26335727]
[1757441087305,4.3043,4288.4,4288.3,4.59306882]
[1757441088708,4.3043,4288.4,4288.3,3.61736882]
[1757441088904,4.3043,4288.4,4288.3,5.2920839]
[1757441090207,7.98319,4288.4,4287.8,4.88251508]
[1757441090508,0.2332,4288.3,4287.9,0.235]
[1757441090709,4.73,4288.3,4287.9,0.235]
[1757441091612,4.73,4288.3,4288.0,0.5985]
[1757441091812,4.73,4288.3,4288.1,0.235]
[1757441094421,4.73,4288.3,4288.1,0.8335]
[1757441094713,4.73,4288.3,4288.1,0.235]
[1757441094914,4.73,4288.3,4288.1,0.8335]
[1757441095310,4.73,4288.3,4288.1,0.235]
[1757441095817,4.73,4288.3,4288.1,0.8335]
[1757441098617,4.73,4288.3,4288.1,0.235]
[1757441098812,7.9378,4288.3,4288.1,0.235]
[1757441101915,8.1728,4288.3,4288.1,0.235]
[1757441102220,8.1728,4288.3,4288.2,0.5985]
[1757441103318,7.9378,4288.3,4288.2,0.5985]
[1757441103514,7.9378,4288.3,4288.2,1.3686]
[1757441104812,7.9378,4288.3,4288.2,0.5985]
[1757441105723,7.9378,4288.3,4288.1,0.235]
[1757441106115,7.9378,4288.3,4288.1,0.8335]
[1757441106309,7.9378,4288.3,4288.2,1.3686]
[1757441107719,7.9378,4288.3,4288.1,0.8335]
[1757441108422,7.9378,4288.3,4288.2,0.5985]
[1757441108617,7.9378,4288.3,4288.1,0.235]
[1757441108919,7.9378,4288.3,4288.1,0.8335]
[1757441109316,7.9378,4288.3,4287.8,0.5985]
[1757441109516,7.9378,4288.3,4287.9,0.235]
[1757441110020,7.9378,4288.3,4288.1,0.5985]
[1757441110422,7.9378,4288.3,4288.0,0.239]
[1757441110626,7.9378,4288.3,4288.1,0.9785]
[1757441110923,7.9378,4288.3,4288.2,1.3686]
[1757441112926,7.9378,4288.3,4288.2,0.9785]
[1757441113123,7.9378,4288.3,4288.2,1.3686]
[1757441114226,4.73,4288.3,4288.2,1.3686]
[1757441116928,1.37,4288.3,4288.2,5.3331]
[1757441117125,0.555,4289.8,4288.2,4.7701]
[1757441117329,0.53408481,4289.7,4289.1,0.563]
[1757441117528,1.3021,4289.6,4289.5,0.9628]
[1757441117723,6.1971,4289.6,4289.5,1.74540816]
[1757441118830,6.7521,4289.6,4289.5,1.74540816]
[1757441119329,6.7521,4289.6,4289.5,1.13450816]
[1757441119825,6.7521,4289.6,4289.5,1.13432397]
[1757441120027,6.7521,4289.6,4289.5,0.17152397]
[1757441120324,0.7471,4289.0,4288.9,0.235]
[1757441120626,6.6605,4289.0,4288.9,0.235]
[1757441120828,1.1305,4288.5,4288.4,3.2078]
[1757441121026,6.5805,4288.5,4288.4,3.4428]
[1757441121225,6.5805,4288.5,4288.4,4.0058]
[1757441121627,6.5805,4288.5,4288.4,4.4056]
[1757441124325,6.1971,4288.5,4288.4,4.4056]
[1757441125233,6.1971,4288.5,4288.4,4.7908]
[1757441125635,5.45,4288.5,4288.4,4.7908]
[1757441125830,5.45,4288.5,4288.4,8.7908]
[1757441128832,6.5805,4288.5,4288.4,3.7708]
[1757441129144,6.5805,4288.5,4288.4,3.4428]
[1757441129637,6.1971,4288.5,4288.4,4.4056]
[1757441129841,6.1971,4288.5,4288.4,4.7908]
[1757441130637,6.1971,4288.5,4288.4,1.583]
[1757441134739,6.5805,4288.5,4288.4,1.1978]
[1757441136943,6.1971,4288.5,4288.4,1.1978]
[1757441137139,5.45,4288.5,4288.4,5.583]
[1757441137350,0.7471,4289.7,4289.6,0.3998]
[1757441137532,0.7471,4289.7,4289.6,1.1978]
[1757441137533,6.5499,4289.7,4289.6,1.1978]
[1757441141447,6.5499,4289.7,4289.6,0.6348]
[1757441141746,6.5499,4289.7,4289.6,0.235]
[1757441146545,6.5499,4289.7,4289.6,1.1978]
[1757441147743,6.5499,4289.7,4289.6,1.583]
[1757441147948,6.5499,4289.7,4289.6,0.235]
[1757441148548,6.5499,4289.7,4289.6,0.6282]
[1757441148750,6.5499,4289.7,4289.6,1.1724]
[1757441150251,6.5499,4289.7,4289.6,0.6282]
[1757441150450,6.5499,4289.7,4289.6,0.235]
[1757441156450,1.0086,4289.0,4288.6,1.67006177]
[1757441156657,1.3575,4288.8,4288.7,0.7792]
[1757441156854,6.7875,4288.8,4288.7,0.7792]
[1757441157055,6.7875,4288.8,4288.4,35.25506177]
[1757441157355,1.3575,4288.6,4288.5,1.1724]
[1757441157552,7.1475,4288.6,4288.5,1.1724]
[1757441158557,7.1475,4288.6,4288.5,0.235]
[1757441158958,7.1475,4288.6,4288.5,0.7792]
[1757441159453,7.1475,4288.6,4288.3,3.2078]
[1757441159454,1.3575,4288.4,4288.3,3.2078]
[1757441159653,6.3075,4288.4,4288.3,3.4428]
[1757441159850,6.3075,4288.4,4288.3,4.7603]
[1757441162562,4.95,4288.4,4288.3,4.7603]
[1757441162750,0.2411,4289.0,4288.3,4.7603]
[1757441162751,0.59,4289.0,4288.5,0.2201]
[1757441162956,5.2139,4289.0,4288.9,1.3175]
[1757441163261,6.4386,4289.0,4288.9,0.235]
[1757441163652,6.4386,4289.0,4288.9,0.7792]
[1757441163855,6.4386,4289.0,4288.9,1.1724]
[1757441164056,6.4386,4289.0,4288.9,0.235]
[1757441166555,6.4386,4289.0,4288.3,0.5442]
[1757441166556,1.3575,4288.8,4288.7,0.235]
[1757441166763,6.2275,4288.8,4288.7,0.235]
[1757441167469,6.2275,4288.8,4288.6,0.235]
[1757441167665,6.2275,4288.8,4288.1,0.5442]
[1757441167666,3.9753,4288.7,4288.3,0.235]
[1757441167967,1.2807,4288.4,4288.3,0.235]
[1757441168172,7.0307,4288.4,4288.3,0.235]
[1757441170963,6.5175,4288.4,4288.3,1.5525]
[1757441172957,7.0307,4288.4,4288.3,1.5525]
[1757441173666,6.1239,4288.4,4288.3,1.5525]
[1757441174060,7.0307,4288.4,4288.3,1.5525]
[1757441175365,6.5175,4288.4,4288.3,1.5525]
[1757441175868,6.1239,4288.4,4288.3,1.5525]
[1757441176769,6.5175,4288.4,4288.3,1.5525]
[1757441177669,7.0147,4288.4,4288.3,1.5525]
[1757441183884,7.0147,4288.4,4288.3,1.1724]
[1757441185487,7.0147,4288.4,4288.3,0.7792]
[1757441185787,7.0147,4288.4,4288.3,0.235]
[1757441188496,7.0147,4288.4,4288.3,0.7796]
[1757441189093,7.0147,4288.4,4288.3,1.1548]
[1757441190688,7.0147,4288.4,4288.3,0.235]
[1757441200293,0.7278,4287.9,4287.7,0.78309915]
[1757441200498,1.225,4287.8,4287.7,0.78309915]
[1757441200698,6.605,4287.8,4287.7,0.78309915]
[1757441203795,6.605,4287.8,4287.7,0.00349915]
[1757441204194,7.1392199,4287.8,4287.7,0.00349915]
[1757441206493,7.3742199,4287.8,4287.7,0.00349915]
[1757441207305,6.84,4287.8,4287.7,0.00349915]
[1757441211709,6.605,4287.8,4287.7,0.00349915]
[1757441211914,6.84,4287.8,4287.7,0.00349915]
[1757441213615,6.584,4287.8,4287.7,1.28119915]
[1757441214512,6.584,4287.8,4287.7,0.90379915]
[1757441216822,6.1078,4287.8,4287.7,1.28119915]
[1757441220820,6.1078,4287.8,4287.7,1.51619915]
[1757441221018,5.38,4287.8,4287.7,1.51619915]
[1757441221717,5.7536,4287.8,4287.7,1.51619915]
[1757441224325,6.61,4287.8,4287.7,1.13879915]
[1757441224525,6.61,4287.8,4287.7,0.76769915]
[1757441224725,6.1338,4287.8,4287.7,1.51619915]
[1757441227834,6.61,4287.8,4287.7,1.51619915]
[1757441228834,6.61,4287.8,4287.7,0.76769915]
[1757441229529,6.61,4287.8,4287.7,1.13879915]
[1757441229735,6.1338,4287.8,4287.7,1.51619915]
[1757441232038,6.61,4287.8,4287.7,1.51619915]
[1757441233740,6.1338,4287.8,4287.7,1.51619915]
[1757441234540,6.61,4287.8,4287.7,1.51619915]
[1757441235544,6.61,4287.8,4287.7,1.13879915]
[1757441236240,6.61,4287.8,4287.7,0.76769915]
[1757441236447,6.61,4287.8,4287.7,0.23849915]
[1757441241551,7.14443744,4287.8,4287.7,0.23849915]
[1757441242950,7.14443744,4287.8,4287.7,1.13519915]
[1757441243247,6.61,4287.8,4287.7,1.13519915]
[1757441243449,6.1338,4287.8,4287.7,1.48909915]
[1757441243948,6.5906,4287.8,4287.7,1.48909915]
[1757441244450,6.5906,4287.8,4287.7,1.13519915]
[1757441247954,6.5906,4287.8,4287.7,0.75749915]
[1757441249358,6.1338,4287.8,4287.7,1.48909915]
[1757441249654,5.7498,4287.8,4287.7,1.48909915]
[1757441249953,5.38,4287.8,4287.7,1.48909915]
[1757441250152,5.38,4287.8,4287.7,5.72231914]
[1757441250353,5.38,4287.8,4287.7,5.89625403]
[1757441250849,5.38,4287.8,4287.7,5.66303404]
[1757441251150,5.38,4287.8,4287.7,5.89625403]
[1757441251356,4.2338,4287.8,4287.7,6.31603403]
[1757441251556,0.9629,4289.0,4288.9,0.1862]
[1757441251752,5.6329,4289.0,4288.9,0.40893489]
[1757441251952,6.1862,4289.0,4288.9,0.40893489]
[1757441259260,6.1862,4289.0,4288.9,0.40852859]
[1757441261967,6.1862,4289.0,4288.9,0.40845791]
[1757441270573,6.1862,4289.0,4288.9,0.40844402]
[1757441276074,6.1862,4289.0,4288.9,0.235]
[1757441280872,6.1862,4289.0,4288.9,0.4133]
[1757441281371,6.1862,4289.0,4288.9,0.5916]
[1757441281571,6.1862,4289.0,4288.9,0.76502741]
[1757441283080,6.1862,4289.0,4288.9,2.44241368]
[1757441288085,6.1862,4289.0,4288.9,0.76502741]
[1757441289882,6.1862,4289.0,4288.9,0.58672741]
[1757441290078,6.1862,4289.0,4288.9,0.17342741]
[1757441290275,6.1862,4289.0,4288.8,1.67738627]
[1757441290276,1.2569,4288.8,4288.7,1.67738627]
[1757441290481,6.7869,4288.8,4288.7,0.234]
[1757441295092,6.7869,4288.8,4288.7,0.595]
[1757441295480,6.7869,4288.8,4288.7,0.9721]
[1757441296592,6.7869,4288.8,4288.7,0.595]
[1757441300497,6.7869,4288.8,4288.7,0.234]
[1757441300789,0.754,4288.7,4288.4,1.67738627]
[1757441300997,1.2754,4288.4,4288.3,1.67738627]
[1757441301197,6.2454,4288.4,4288.3,1.91138627]
[1757441301398,6.2454,4288.4,4288.3,0.234]
[1757441306111,0.754,4288.2,4288.1,3.2078]
[1757441306314,6.9254,4288.2,4288.1,3.4418]
[1757441317618,6.9254,4288.2,4288.1,4.1377]
[1757441317816,6.9254,4288.2,4288.1,4.6411]
[1757441318018,6.9254,4288.2,4288.1,4.1377]
[1757441318815,6.9254,4288.2,4288.1,4.6411]
[1757441320621,6.5453,4288.2,4288.1,4.6411]
[1757441321823,6.9254,4288.2,4288.1,4.1377]
[1757441323521,6.9254,4288.2,4288.1,4.6411]
[1757441323714,5.65,4288.2,4288.1,8.6411]
[1757441324224,6.1714,4288.2,4288.1,8.6411]
[1757441329520,6.5217,4288.2,4288.1,8.6411]
[1757441331030,5.65,4288.2,4288.1,8.6411]
[1757441331526,0.5196,4288.4,4288.1,8.6411]
[1757441331722,5.7096,4288.4,4288.3,1.1885]
[1757441331927,5.19,4288.4,4288.3,1.4225]
[1757441332226,5.7096,4288.4,4288.3,1.4225]
[1757441332414,5.7096,4288.4,4288.3,6.2225]
[1757441332826,5.7096,4288.4,4288.3,1.4225]
[1757441336828,6.0599,4288.4,4288.3,1.4225]
[1757441337030,6.4108,4288.4,4288.3,1.4225]
[1757441337229,6.4108,4288.4,4288.3,0.9384]
[1757441341035,6.4108,4288.4,4288.3,0.5722]
[1757441341536,6.4108,4288.4,4288.3,1.4225]
[1757441341838,6.4108,4288.4,4288.3,0.9384]
[1757441342028,0.9496,4288.4,4288.3,1.4225]
[1757441342232,0.7012,4289.5,4289.4,1.2152]
[1757441342433,5.9512,4289.5,4289.4,4.657]
[1757441343231,0.7012,4289.5,4289.4,4.657]
[1757441343534,0.2116,4290.5,4289.4,4.657]
[1757441343838,5.5828,4290.5,4290.4,3.2078]
[1757441344032,5.5828,4290.5,4290.4,3.4418]
[1757441344341,6.1024,4290.5,4290.4,3.4418]
[1757441355241,6.1024,4290.5,4290.4,3.78]
[1757441355547,6.1024,4290.5,4290.4,4.657]
[1757441355739,5.8908,4290.5,4290.4,4.657]
[1757441355938,4.67,4290.5,4290.4,4.657]
[1757441356136,1.97,4290.5,4290.4,8.657]
[1757441360249,1.2243,4291.2,4291.1,0.6744]
[1757441360550,6.5143,4291.2,4291.1,4.619]
[1757441363258,5.9958,4291.2,4291.1,4.619]
[1757441363959,6.5143,4291.2,4291.1,4.619]
[1757441369162,5.9958,4291.2,4291.1,4.619]
[1757441369462,6.5143,4291.2,4291.1,4.619]
[1757441371757,6.5143,4291.2,4291.1,3.4418]
[1757441371958,5.6421,4291.2,4291.1,4.619]
[1757441372158,6.5143,4291.2,4291.1,4.619]
[1757441373258,6.5143,4291.2,4291.1,3.7801]
[1757441373963,6.5143,4291.2,4291.1,3.2078]
[1757441374160,6.5143,4291.2,4290.5,0.7234]
[1757441374161,0.5185,4290.7,4290.6,4.0489]
[1757441374466,1.4206,4290.7,4290.6,4.619]
[1757441374665,1.4206,4290.7,4290.6,4.385]
[1757441374866,1.7743,4290.7,4290.6,4.619]
[1757441375060,5.8743,4290.7,4290.6,4.619]
[1757441375265,6.7943,4290.7,4290.6,3.2078]
[1757441375466,3.0543,4290.7,4290.6,3.4418]
[1757441375667,3.0543,4290.7,4290.6,4.2829]
[1757441375970,6.0743,4290.7,4290.6,4.2829]
[1757441376671,0.3521,4290.8,4290.7,1.1772]
[1757441376868,4.9421,4290.8,4290.7,1.4112]
[1757441377173,5.4606,4290.8,4290.7,1.4112]
[1757441378072,5.8143,4290.8,4290.7,1.4112]
[1757441378277,2.4043,4290.8,4290.7,3.07765419]
[1757441379573,1.8858,4290.8,4290.7,3.07765419]
[1757441379774,2.4043,4290.8,4290.7,3.07765419]
[1757441381275,1.18,4290.8,4290.7,1.4112]
[1757441382170,2.4043,4290.8,4290.7,0.8411]
[1757441382380,2.4043,4290.8,4290.7,1.4112]
[1757441384073,1.5321,4290.8,4290.7,1.4112]
[1757441384669,2.0506,4290.8,4290.7,1.4112]
[1757441389274,1.18,4290.8,4290.7,1.4112]
[1757441389483,1.18,4290.8,4290.7,3.49426774]
[1757441390572,1.18,4290.8,4290.7,1.4112]
[1757441391575,1.18,4290.8,4290.7,5.83069]
[1757441392281,0.102,4290.8,4290.7,5.83069]
[1757441392680,0.4883,4291.4,4291.2,0.4633]
[1757441392984,6.0183,4291.4,4291.3,3.7948]
[1757441393182,6.6724,4291.4,4291.3,3.7948]
[1757441393478,6.6724,4291.4,4291.3,3.96725749]
[1757441394778,6.6724,4291.4,4291.3,8.76725749]
[1757441395780,6.0183,4291.4,4291.3,8.87755749]
[1757441398177,5.53,4291.4,4291.3,8.87755749]
[1757441398377,6.0183,4291.4,4291.3,8.87755749]
[1757441399387,6.0183,4291.4,4291.3,10.96787676]
[1757441399578,6.6724,4291.4,4291.3,10.62357676]
[1757441399779,6.6724,4291.4,4291.3,10.27057676]
[1757441399979,6.6724,4291.4,4291.3,8.41425749]
[1757441400176,6.6724,4291.4,4291.3,8.59075749]
[1757441400377,6.6724,4291.4,4291.3,3.38025749]
[1757441400581,6.6724,4291.4,4291.3,3.61425749]
[1757441400879,6.3469,4291.4,4291.3,3.96725749]
[1757441401182,6.6724,4291.4,4291.3,3.96725749]
[1757441401984,6.6724,4291.4,4291.3,3.79075749]
[1757441402182,6.6724,4291.4,4291.3,3.96725749]
[1757441402982,6.6724,4291.4,4291.3,3.61425749]
[1757441403887,6.6724,4291.4,4291.3,3.38025749]
[1757441404084,6.6724,4291.4,4291.3,2.53625749]
[1757441404483,10.6724,4291.4,4291.3,0.40645749]
[1757441405587,10.6724,4291.4,4291.3,0.17245749]
[1757441405893,1.1424,4291.0,4290.9,33.567]
[1757441406092,6.2124,4291.0,4290.9,33.801]
[1757441407091,6.2124,4291.0,4290.9,34.2863]
[1757441407287,6.2124,4291.0,4290.9,33.801]
[1757441408487,10.2124,4291.0,4290.9,33.567]
[1757441408689,9.7241,4291.0,4290.9,0.234]
[1757441408891,5.7241,4291.0,4290.9,0.234]
[1757441409098,5.7241,4291.0,4290.9,0.7193]
[1757441409596,9.95715,4291.0,4290.3,3.2078]
[1757441409888,3.44086,4290.9,4290.4,0.234]
[1757441410082,8.99086,4290.9,4290.4,0.234]
[1757441410286,8.7578,4290.9,4290.4,0.7193]
[1757441410995,8.7578,4290.9,4290.4,0.234]
[1757441411201,8.7578,4290.9,4290.4,0.7193]
[1757441411496,8.7578,4290.9,4290.4,0.234]
[1757441412094,4.0,4290.8,4290.4,0.234]
[1757441412410,4.0,4290.8,4289.8,3.6931]
[1757441412411,0.234,4290.7,4289.8,3.6931]
[1757441412692,0.234,4290.7,4289.0,0.2206]
[1757441412693,3.2078,4290.2,4289.9,0.234]
[1757441412895,8.2018,4290.2,4289.3,3.2078]
[1757441413094,3.2078,4289.7,4289.4,0.234]
[1757441413394,8.3318,4289.7,4289.0,0.234]
[1757441413594,3.2078,4289.1,4288.8,0.234]
[1757441413889,8.6778,4289.1,4288.8,0.234]
[1757441414095,4.234,4289.0,4288.4,0.234]
[1757441414289,3.2078,4288.5,4288.4,0.234]
[1757441414488,8.8178,4288.5,4288.4,0.234]
[1757441414897,8.8178,4288.5,4288.4,1.0662]
[1757441415289,8.8178,4288.5,4288.4,1.4038]
[1757441415290,5.61,4288.5,4288.4,1.4038]
[1757441417403,5.6366,4288.5,4288.4,1.0662]
[1757441417588,5.6449,4288.5,4288.4,0.7193]
[1757441418293,5.6366,4288.5,4288.4,1.385]
[1757441424600,5.6366,4288.5,4288.4,1.0595]
[1757441425604,5.6449,4288.5,4288.4,0.7193]
[1757441425802,5.6449,4288.5,4288.4,0.234]
[1757441426302,5.6449,4288.5,4288.4,0.7681]
[1757441427898,5.6366,4288.5,4288.4,1.1083]
[1757441429104,5.6366,4288.5,4288.4,1.4338]
[1757441429403,5.61,4288.5,4288.4,1.4338]
[1757441432006,5.7264,4288.5,4288.4,1.4338]
[1757441435506,5.7397,4288.5,4288.4,1.4338]
[1757441436413,5.7264,4288.5,4288.4,1.4338]
[1757441437213,1.2964,4288.5,4288.4,1.4338]
[1757441437804,1.2964,4288.5,4288.4,6.2338]
[1757441439108,1.3097,4288.5,4288.4,6.2338]
[1757441439510,1.2964,4288.5,4288.4,6.2338]
[1757441440009,5.5164,4288.5,4288.4,6.2338]
[1757441440209,5.5164,4288.5,4288.4,7.90622445]
[1757441441717,5.5297,4288.5,4288.4,7.90622445]
[1757441442118,5.5297,4288.5,4288.4,6.2338]
[1757441442318,5.5297,4288.5,4288.4,1.67561978]
[1757441442319,5.543,4288.5,4288.4,1.67561978]
[1757441442518,5.543,4288.5,4288.4,0.234]
[1757441442717,5.543,4288.5,4288.4,0.7681]
[1757441443015,5.5513,4288.5,4288.4,0.7681]
[1757441444011,0.0266,4288.3,4288.0,268.33002109]
[1757441444217,0.0349,4288.1,4288.0,266.65440131]
[1757441444413,5.0149,4288.1,4288.0,266.88840131]
[1757441446319,9.55029011,4288.1,4288.0,266.88840131]
[1757441449016,5.54199011,4288.1,4288.0,267.61020131]
[1757441449217,5.0066,4288.1,4288.0,267.61020131]
[1757441449817,4.98,4288.1,4288.0,267.61020131]
[1757441456024,5.0964,4288.1,4288.0,267.61020131]
[1757441469030,9.0964,4288.1,4288.0,266.65440131]
[1757441469226,9.0964,4288.1,4288.0,266.88840131]
[1757441469437,9.0964,4288.1,4288.0,267.40230131]
[1757441469727,9.0964,4288.1,4288.0,267.61020131]
[1757441469930,9.0964,4288.1,4288.0,266.65440131]
[1757441469931,12.3042,4288.1,4288.0,266.65440131]
[1757441470427,12.53741,4288.1,4288.0,266.65440131]
[1757441470628,12.3042,4288.1,4288.0,266.65440131]
[1757441473521,12.83911601,4288.1,4288.0,266.65440131]
[1757441473930,14.3233249,4288.1,4288.0,266.65440131]
[1757441474334,13.07232601,4288.1,4288.0,215.57001409]
[1757441474523,14.3233249,4288.1,4288.0,215.57001409]
[1757441474729,14.0901149,4288.1,4288.0,215.57001409]
[1757441475432,12.83911601,4288.1,4288.0,215.57001409]
[1757441476344,12.83911601,4288.1,4288.0,207.37962687]
[1757441479234,12.83911601,4288.1,4288.0,199.18923965]